Cogmind - Beta 12 @@@ ROGUE MODE // 2023.11.15 @ 20:03:07 Player: epb Result: Destroyed by G-47 Trooper with Particle Gun Performance ------------- Evolutions (2) 1000 Regions Visited (4) 800 Robots Destroyed (26) 130 Value Destroyed (688) 688 Prototype IDs (1) 20 Alien Tech Used (0) 0 Bonus (0) 0 TOTAL SCORE: 2638 Bonus ------- None Cogmind --------- Core Integrity 0/550 Matter 300/300 Energy 99/100 System Corruption 0% Temperature Cool (9) Movement Core (200) Ox3 Location -8/Materials Parts ------- > --- POWER (2) -------- (None) > --- PROPULSION (4) --- (None) > --- UTILITY (2) ------ Medium Storage Unit Machine Analyzer > --- WEAPON (3) ------- (None) > --- INVENTORY (10) --- Large Storage Unit Signal Interpreter Particle Charger Light Armor Plating Medium Armor Plating Peak State ------------ > --- POWER ------------ Ion Engine Improved Ion Engine > --- PROPULSION ------- Titanium Leg Titanium Leg Titanium Leg Titanium Leg > --- UTILITY ---------- Medium Storage Unit Machine Analyzer > --- WEAPON ----------- Shock Rifle Small Laser Light Assault Rifle > --- INVENTORY -------- Light Ion Engine Aluminum Leg Aluminum Leg Aluminum Leg Large Storage Unit Signal Interpreter Particle Charger Light Armor Plating Medium Armor Plating [Rating: 25] Favorites ----------- Power Ion Engine Engine Ion Engine Power Core Light Nuclear Core Propulsion Titanium Leg Leg Titanium Leg Utility Machine Analyzer Storage Small Storage Unit Processor Machine Analyzer Protection Light Armor Plating Weapon Small Laser Energy Gun Small Laser Ballistic Gun Light Assault Rifle Build | -11 -10 -9 -9 -8 ------- Run | Jun Mat Mat Min Mat Slots Evolved 4 | . . 2 . 2 Power 1 | . . . . 1 Propulsion 2 | . . 2 . . Utility . | . . . . . Weapon 1 | . . . . 1 Parts Attached 31 | 6 2 10 1 12 Power 9 | 1 . 2 1 5 Engine 7 | 1 . 1 1 4 Core 2 | . . 1 . 1 Reactor . | . . . . . Propulsion 12 | 2 . 6 . 4 Treads . | . . . . . Leg 12 | 2 . 6 . 4 Wheel . | . . . . . Hover . | . . . . . Flight . | . . . . . Utility 4 | 1 1 2 . . Device . | . . . . . Storage 2 | 1 . 1 . . Processor 1 | . . 1 . . Hackware . | . . . . . Protection 1 | . 1 . . . Artifact . | . . . . . Weapon 6 | 2 1 . . 3 Energy Gun 4 | 1 . . . 3 Energy Cannon . | . . . . . Ballistic Gun 2 | 1 1 . . . Ballistic Cannon . | . . . . . Launcher . | . . . . . Special Weapon . | . . . . . Impact Weapon . | . . . . . Slashing Weapon . | . . . . . Piercing Weapon . | . . . . . Special Melee Weapon . | . . . . . Unidentified Prototypes 1 | . . . . 1 Parts Lost 22 | . 2 2 . 18 Power 8 | . . 2 . 6 Propulsion 9 | . 1 . . 8 Utility . | . . . . . Weapon 5 | . 1 . . 4 Highest Loss Streak 11 | . 2 1 . 11 To Critical Strikes . | . . . . . Average Slot Usage (%) 90 | . 81 99 100 77 Engine 10 | . 14 4 11 12 Core 1 | . . 5 . 1 Leg 35 | . 26 43 44 27 Storage 11 | . 14 11 11 9 Processor 7 | . . 10 11 9 Energy Gun 12 | . 14 11 11 11 Ballistic Gun 10 | . 12 11 11 5 Naked Turns . | . . . . . Heaviest Build 27 | 13 15 17 19 27 Greatest Support 68 | 20 20 68 17 68 Greatest Overweight (x) 3 | 3 1 . 1 3 Average Overweight (x) . | . . . . 1 Largest Inventory Capacity 10 | 8 8 10 10 10 Average Capacity 8 | 7 8 8 10 10 Most Carried 9 | 2 5 9 9 9 Average Carried 6 | 1 4 7 8 7 Final Capacity 10 | 8 8 10 10 10 Final Carried 9 | 2 4 8 9 5 Class Distribution -------------------- 93% | Mutant 6% | Skirmisher Dominant Class ---------------- Mutant | -10/Materials Mutant | -9/Materials Mutant | -9/Mines Mutant | -8/Materials Resources | -11 -10 -9 -9 -8 ----------- Run | Jun Mat Mat Min Mat Matter Collected 535 | 210 127 128 20 50 Remotely . | . . . . . Salvage Created 826 | . 288 203 23 312 Parts 49 | . 22 10 3 14 Haulers Intercepted . | . . . . . Recyclers Shooed 2 | . 1 . 1 . Parts Field Recycled . | . . . . . Retrieved Matter . | . . . . . Parts Self-Destructed . | . . . . . Prevented . | . . . . . Kills | -11 -10 -9 -9 -8 ------- Run | Jun Mat Mat Min Mat Combat Hostiles Destroyed 24 | . 13 4 2 5 Guns 24 | . 13 4 2 5 Classes Destroyed 5 | . 2 2 . 1 Worker 1 | . . . . 1 Watcher 1 | . . 1 . . Swarmer 10 | . 8 . 2 . Grunt 13 | . 5 3 . 5 Sentry 1 | . . 1 . . Best Kill Streak 3 | . 3 3 2 3 Combat Bots Only 3 | . 3 3 2 2 Max Kills in Single Turn 1 | . 1 1 1 1 Gunslinging . | . . . . . Exploded . | . . . . . Melee . | . . . . . Uniques/NPCs Destroyed . | . . . . . Combat | -11 -10 -9 -9 -8 -------- Run | Jun Mat Mat Min Mat Damage Taken 2874 | . 457 394 102 1921 Core 772 | . 122 64 26 560 Absorbed by Shields . | . . . . . Core Remaining (%) 76 | 100 51 . 77 . Volleys Fired 121 | . 35 28 11 47 Largest 3 | . 2 2 2 3 Hottest 110 | . 60 60 60 110 Shots Fired 209 | . 64 56 21 68 Gun 209 | . 64 56 21 68 Cannon . | . . . . . Launcher . | . . . . . Special . | . . . . . Kinetic 90 | . 29 28 11 22 Thermal 106 | . 35 28 10 33 Explosive . | . . . . . Electromagnetic 13 | . . . . 13 Robot Hit Streak 15 | . 9 7 11 15 Robot Miss Streak 3 | . 3 3 3 3 Penetration Max . | . . . . . Secondary Targets 1 | . 1 . . . Max Gunslinging Chain 1 | . 1 . . . Shots Hit Robots 142 | . 43 37 15 47 Core Hits 52 | . 17 11 4 20 Critical Kills . | . . . . . Critical Parts Destroyed . | . . . . . Critical Strikes . | . . . . . Melee Attacks . | . . . . . Impact . | . . . . . Slashing . | . . . . . Piercing . | . . . . . Sneak Attacks . | . . . . . Combat Hostiles . | . . . . . Follow-up Attacks . | . . . . . Damage Inflicted 1714 | . 511 349 136 718 Guns 1682 | . 511 349 136 686 Cannons . | . . . . . Explosions . | . . . . . Melee . | . . . . . Ramming 32 | . . . . 32 Kinetic 615 | . 266 154 70 125 Thermal 885 | . 245 195 66 379 Explosive . | . . . . . Electromagnetic 182 | . . . . 182 Impact . | . . . . . Slashing . | . . . . . Piercing . | . . . . . Highest Corruption . | . . . . . Average Corruption . | . . . . . Corruption Purged . | . . . . . Corruption Blocked . | . . . . . Overload Shots . | . . . . . Overflow Damage . | . . . . . Projectiles . | . . . . . Explosions . | . . . . . Melee . | . . . . . Knockbacks . | . . . . . Impact . | . . . . . Kinetic . | . . . . . Secondary . | . . . . . Self-Inflicted Damage 3 | . . . . 3 Shots . | . . . . . Rammed 2 | . . . . 2 Targets Rammed 18 | . . . . 18 Kicked 16 | . . . . 16 Crushed . | . . . . . Highest Temperature 459 | . 66 58 32 459 Average Temperature 149 | . 31 22 14 253 Received Heat Transfer 1332 | . 90 126 . 1116 Effects 11 | . . . . 11 Shutdowns 6 | . . . . 6 Energy Bleed 2 | . . . . 2 Interference 3 | . . . . 3 Siege Activations . | . . . . . Robots Corrupted . | . . . . . Combat Hostiles . | . . . . . Parts Fried . | . . . . . Impact Corruptions . | . . . . . Robots Melted . | . . . . . Combat Hostiles . | . . . . . Parts Melted 2 | . . . . 2 Heat Transferred 1931 | . 550 450 150 781 Parts Sabotaged . | . . . . . Parts Stolen . | . . . . . Parts Stripped . | . . . . . Power Chain Reactions . | . . . . . Missiles Intercepted . | . . . . . Alert | -11 -10 -9 -9 -8 ------- Run | Jun Mat Mat Min Mat Peak Influence 288 | . 288 191 57 70 Initial 79 | . . 79 7 . Average 71 | . 116 96 30 21 Maximum Alert Level 1 | . 1 . . . Low Security (%) 96 | 100 88 100 100 100 Level 1 3 | . 11 . . . Level 2 . | . . . . . Level 3 . | . . . . . Level 4 . | . . . . . Level 5 . | . . . . . High Security . | . . . . . Max Security . | . . . . . Squads Dispatched 5 | . 2 1 . 2 Investigation 1 | . 1 . . . Extermination . | . . . . . Reinforcement 4 | . 1 1 . 2 Assault . | . . . . . Garrison . | . . . . . Intercept . | . . . . . Searches Triggered . | . . . . . Construction Impeded 1 | . . . . 1 Haulers Reinforced . | . . . . . Active Scanning Responses . | . . . . . Cargo Convoy Interrupts . | . . . . . Stealth | -11 -10 -9 -9 -8 --------- Run | Jun Mat Mat Min Mat Distress Signals 3 | . 1 . . 2 Communications Jammed . | . . . . . Distress Signals . | . . . . . Times Spotted 52 | . 23 11 2 16 Peak Tracking Total 7 | . 6 3 2 7 Tactical Retreats 6 | . 3 1 . 2 Traps | -11 -10 -9 -9 -8 ------- Run | Jun Mat Mat Min Mat Traps Triggered 4 | . 1 3 . . Indirectly . | . . . . . Trap Hack Attempts . | . . . . . Triggered . | . . . . . Disarmed . | . . . . . Reprogrammed . | . . . . . Reused . | . . . . . Traps Extracted . | . . . . . Installed . | . . . . . Triggered . | . . . . . Machines | -11 -10 -9 -9 -8 ---------- Run | Jun Mat Mat Min Mat Machines Disabled . | . . . . . Max in Single Turn . | . . . . . Machines Repaired . | . . . . . Machines Sabotaged . | . . . . . Overloaded Fab Kills . | . . . . . Hacking | -11 -10 -9 -9 -8 --------- Run | Jun Mat Mat Min Mat Machines Accessed 5 | . 2 3 . . Terminals 4 | . 2 2 . . Fabricators . | . . . . . Repair Stations . | . . . . . Recycling Units 1 | . . 1 . . Scanalyzers . | . . . . . Garrison Access . | . . . . . Total Hacks 10 | . 5 5 . . Successful 3 | . 1 2 . . Failed 7 | . 4 3 . . Catastrophic . | . . . . . Database Lockouts . | . . . . . Manual . | . . . . . Terminals 7 | . 5 2 . . Fabricators . | . . . . . Repair Stations . | . . . . . Recycling Units 3 | . . 3 . . Scanalyzers . | . . . . . Garrison Access . | . . . . . Terminal Hacks 2 | . 1 1 . . Branch Access Points 1 | . 1 . . . Reinforcement Status 1 | . . 1 . . Fabricator Hacks . | . . . . . Repair Station Hacks . | . . . . . Recycling Unit Hacks 1 | . . 1 . . Retrieve Components 1 | . . 1 . . Scanalyzer . | . . . . . Garrison Access Hacks . | . . . . . Unauthorized Hacks . | . . . . . Terminals . | . . . . . Fabricators . | . . . . . Repair Stations . | . . . . . Recycling Units . | . . . . . Scanalyzers . | . . . . . Garrison Access . | . . . . . Data Cores Recovered . | . . . . . Used . | . . . . . Hacking Detections 4 | . 1 3 . . Full Trace Events . | . . . . . Feedback Events . | . . . . . Feedback Blocked . | . . . . . Robot Schematics Acquired . | . . . . . Robots Built . | . . . . . Authchips . | . . . . . Time . | . . . . . Total Robot Build Rating . | . . . . . Part Schematics Acquired . | . . . . . Parts Built . | . . . . . Authchips . | . . . . . Time . | . . . . . Total Part Build Rating . | . . . . . Parts Repaired . | . . . . . Time . | . . . . . Parts Recycled . | . . . . . Recycled Matter . | . . . . . Retrieved Matter . | . . . . . Retrieved Components 1 | . . 1 . . Parts Scanalyzed . | . . . . . Part Schematics Acquired . | . . . . . Parts Damaged . | . . . . . Bothacking | -11 -10 -9 -9 -8 ------------ Run | Jun Mat Mat Min Mat Used RIF Installer . | . . . . . Robots Hacked . | . . . . . Non-combat . | . . . . . Combat . | . . . . . Robot Hacks Applied . | . . . . . Relay Couplers Released . | . . . . . Fabnet Peak Effective % . | . . . . . Robots Rewired . | . . . . . Allies Hacked . | . . . . . Hacks Repelled . | . . . . . Allies | -11 -10 -9 -9 -8 -------- Run | Jun Mat Mat Min Mat Total Allies . | . . . . . Largest Group . | . . . . . Highest-Rated Group . | . . . . . Highest-Rated Ally . | . . . . . Total Orders . | . . . . . Ally Attacks . | . . . . . Total Damage . | . . . . . Kills . | . . . . . Allies Corrupted . | . . . . . Allies Melted . | . . . . . Intel | -11 -10 -9 -9 -8 ------- Run | Jun Mat Mat Min Mat Robot Analysis Total . | . . . . . Derelict Logs Recovered 1 | . . . 1 . Drone Launches . | . . . . . Drone Recoveries . | . . . . . Exploration | -11 -10 -9 -9 -8 ------------- Run | Jun Mat Mat Min Mat Turns Passed 1858 | 72 571 489 430 296 Spaces Moved 957 | 47 322 296 216 76 Core 23 | 12 . . . 11 Treads . | . . . . . Legs 934 | 35 322 296 216 65 Wheels . | . . . . . Hover . | . . . . . Flight . | . . . . . Fastest Speed 50 | 50 120 120 130 120 Average Speed 146 | 132 128 129 185 188 Slowest Speed 200 | 200 190 130 200 200 Overloaded Moves . | . . . . . Propulsion Burnouts . | . . . . . Robots Hopped . | . . . . . Cave-ins Triggered . | . . . . . Exploration Rate (%) 27 | 4 44 30 54 7 Regions Visited 4 Branch Regions 1 Pre-discovered Areas 1 | . . . 1 . Known Exits Taken . | . . . . . Unknown Exits Taken 4 | 1 1 1 1 . Scrap Searched 1 | . . . 1 . Spaces Dug . | . . . . . Terrain Destroyed . | . . . . . Melee . | . . . . . Projectile . | . . . . . AOE . | . . . . . Terrain Rammed . | . . . . . Walls Destroyed . | . . . . . Machines Disabled . | . . . . . Actions | -11 -10 -9 -9 -8 --------- Run | Jun Mat Mat Min Mat Total 1206 | 54 417 348 227 160 Wait 71 | . 56 10 . 5 Move 953 | 46 321 295 215 76 Hop . | . . . . . Pick Up 10 | 2 3 4 . 1 Fast Attach 16 | 6 1 2 . 7 Attach 9 | . 1 3 . 5 Detach . | . . . . . Swap 6 | . . 5 1 . Drop 2 | . . 1 . 1 Fire 121 | . 35 28 11 47 Melee . | . . . . . Ram 2 | . . . . 2 Kick 16 | . . . . 16 Crush . | . . . . . Escape Stasis . | . . . . . Rewire . | . . . . . Trap . | . . . . . Miscellaneous . | . . . . . Route ------- -11/Junkyard -10/Materials (discovered 2 exits: *Mat / *Min) -9/Materials -9/Mines -8/Materials History --------- Turn | Location | Event 34 | -11/Junkyard | Discovered new exit (range 14) 73 | -11/Junkyard | Entered Materials 197 | -10/Materials | Identified exit to Mines 302 | -10/Materials | Build established: Mutant 592 | -10/Materials | Discovered new exit (range 16) 644 | -10/Materials | Entered another Materials area 644 | -9/Materials | Evolved 2 slots: Propulsion x2 940 | -9/Materials | Discovered new exit (range 16) 1133 | -9/Materials | Entered Mines 1149 | -9/Mines | Met a Derelict bent on vengeance 1187 | -9/Mines | Learned Materials terminal intel 1414 | -9/Mines | Learned location of Storage (-8) 1551 | -9/Mines | Discovered new exit (range 5) 1563 | -9/Mines | Entered Materials 1563 | -8/Materials | Evolved 2 slots: Power x1, Weapon x1 1564 | -8/Materials | Loaded intel: 12 terminal locations 1802 | -8/Materials | Lost 11 parts (4p4n3w) 1829 | -8/Materials | Core integrity fell below 50% 1841 | -8/Materials | Core integrity fell below 20% 1859 | -8/Materials | Destroyed by G-47 Trooper with Particle Gun Last Messages --------------- 01803_ Identified Hvy. Particle Gun. 01803_ Lgt. Ion Engine broken. 01803_ Malfunction: Power surge. 01805_ Dropped Faulty Hvy. Particle Gun. 01816_ Lgt. Ion Engine destroyed. 01816_ Aluminum Leg destroyed. 01818_ Carbon-fiber Leg destroyed. 01820_ W-25 Informer sends out distress signal. 01822_ K-01 Serf collects debris. 01822_ Broken Lgt. Ion Engine destroyed. 01824_ Critical hit (Burn: +37). 01824_ Hvy. Laser destroyed. 01826_ Aluminum Leg destroyed. 01826_ Kicked G-47 Trooper. 01831_ Kicked G-47 Trooper out of the way. 01832_ Kicked G-47 Trooper. 01834_ Aluminum Leg destroyed. 01835_ Slammed into G-47 Trooper. 01855_ Slammed into A-02 Transporter. 01856_ Critical hit (Burn: +37). Map ----- +----------------------------------------------------+ | | | | | | | | | | | | | | | | | | | | | | | | | ?????????????????????????????????????????????????? | | ###########??????????????????????????????????????? | | # #??????????????????????????????????????? | | # #??????????????????????????????????????? | | # #??????????????????????????????????????? | | # !! #??????????????????????????????????????? | | # ! #??????????????????????????????????????? | | # #??????????????????????????????????????? | | # [ #??????????????????????????????????????? | | # #??????????????????????????????????????? | | #####+#####???#######???###+###??????????????????? | | ### ####### #???# #??????????????????? | | ##### #??????????????????? | | Y g%% @ T #??????????????????? | | !%g##### #??????????????????? | | ### #######=![= #???# #??????????????????? | | ??#######???#####/#####?##a ##??????????????????? | | ????????????# %[%%%% #??? #???????????????????? | | ????????????# %%%%% #??? #???????????????????? | | ????????????# """%""" #???w #???????????????????? | | ????????????# """ """ #??? k#???????????????????? | | ????????????# """ """ #??? #???????????????????? | | ????????????# #???? #???????????????????? | | ????????????# * #???? ???????????????????? | | ???????"T"??# #???? ???????????????????? | | ????????????#########/#???? ??????????????????? | | ?????????????????????? ???? t??????????????????? | | ???????????????????????#???? ???????????????????? | | ????????????????"""??????????????????????????????? | | ????????????????"""??????????????????????????????? | | ????????????????"""??????????????????????????????? | | ?????????????????????????????????????????????????? | | ?????????????????????????????????????????????????? | | ?????????????????????????????????????????????????? | | ?????????????????????????????????????????????????? | | ?????????????????????????????????????????????????? | | ?????????????????????????????????????????????????? | | ?????????????????????????????????????????????????? | +----------------------------------------------------+ Best States ------------- Heat Dissipation 31 Energy Generation 27 Energy Capacity 415 Matter Stores 300 Matter Capacity 300 Sight Range 16 Terrain Scan Density 10 Armor Coverage 150 Evasion (%) 55 Item Schematics ----------------- None Robot Schematics ------------------ None Fabricated ------------ Nothing Alien Tech Used ----------------- None Achievements -------------- None Challenges ------------ None Game ------ Seed IonHackingCloak Manual? 0 Play Time 00:17:15 Cumulative 13.8 hours Start 2023.11.15 @ 19:46:38 End 2023.11.15 @ 20:03:07 Sessions 1 Manual Loads 0 Difficulty Rogue Special Mode None Game No. 36 Rogue 36 Adventurer 0 Explorer 0 Win Type - Total 0 Types 0/0/0/0/0/0/0/0/0 Lore% 9 Gallery% 22 Achievement% 16 Wizard Run 0 Options --------- ASCII 0 Keyboard 0 Movement Vi Keybinds 0 Fullscreen 2 Font 14/TerminusBold Map View 72x54 Tactical HUD 1 Map Filters NONE Filters NONE Steam X RUN: 4791ebda-8722-43b7-8387-5a5c6b3d69fb